bitfinex/quotes_ETHUSD_20241212
["timestamp","ask_amount","ask_price","bid_price","bid_amount"]
[1733975865724,3.50932827,3932.6,3931.6,3.0]
[1733975866024,3.50932827,3932.6,3931.7,1.27169]
[1733975866215,3.50932827,3932.6,3931.4,1.27178]
[1733975866415,3.50932827,3932.6,3931.5,1.27176]
[1733975866735,3.50932827,3932.6,3931.1,4.4350989]
[1733975866917,3.50932827,3932.6,3931.6,1.27174]
[1733975867297,0.55,3931.9,3931.1,0.1631989]
[1733975867415,3.50932827,3931.9,3931.1,0.1631989]
[1733975868513,0.55,3931.8,3931.1,0.1631989]
[1733975868752,0.55,3931.8,3931.1,0.0369927]
[1733975869116,2.54344,3931.7,3931.1,0.0369927]
[1733975869459,0.66027683,3931.6,3931.1,0.0369927]
[1733975869761,0.55,3931.4,3931.1,0.0369927]
[1733975871629,3.50932827,3931.3,3931.1,0.0369927]
[1733975871943,6.05301827,3931.3,3931.1,0.0369927]
[1733975872152,1.555,3930.8,3930.1,0.1646087]
[1733975872326,6.01648557,3930.6,3930.1,0.1646087]
[1733975873325,3.09422,3930.5,3930.1,0.1646087]
[1733975873517,2.54428,3930.4,3930.1,0.1646087]
[1733975873820,3.47233557,3930.2,3930.1,0.1646087]
[1733975874333,4.02233557,3930.2,3930.1,0.1646087]
[1733975874944,3.47233557,3930.2,3930.1,0.1646087]
[1733975875814,2.54326,3932.0,3930.1,0.1646087]
[1733975875815,3.47233557,3931.0,3930.3,1.27215]
[1733975876021,3.47233557,3931.0,3930.2,4.5697]
[1733975876466,3.47233557,3931.0,3930.3,3.0]
[1733975876780,3.47233557,3931.3,3930.4,3.0]
[1733975876925,3.47233557,3931.2,3930.1,0.1646087]
[1733975877133,2.105,3931.1,3930.1,0.1646087]
[1733975877544,1.555,3931.1,3930.1,0.1646087]
[1733975877838,2.31210256,3931.1,3930.1,0.1646087]
[1733975878433,0.55,3930.8,3930.1,0.1646087]
[1733975878627,6.01642557,3930.7,3930.1,0.1646087]
[1733975878876,0.55,3930.6,3930.1,0.1646087]
[1733975879644,3.47233557,3930.7,3930.1,0.1646087]
[1733975879971,4.22946813,3930.7,3930.1,0.1646087]
[1733975880523,3.47233557,3930.7,3930.1,0.1646087]
[1733975881868,0.55,3930.6,3930.1,0.1646087]
[1733975883286,0.55,3930.4,3930.1,0.1646087]
[1733975883442,3.47233557,3930.3,3930.1,0.1646087]
[1733975883643,3.47233557,3930.2,3930.1,0.1646087]
[1733975884148,5.57733557,3930.2,3930.1,0.1646087]
[1733975884344,5.57733557,3930.2,3927.8,5.14580043]
[1733975884345,5.02733557,3929.5,3927.8,5.14580043]
[1733975884591,1.555,3928.8,3926.7,3.81682624]
[1733975884741,1.555,3928.8,3926.7,3.57610043]
[1733975884742,3.09537,3928.7,3926.7,3.57610043]
[1733975885084,0.55,3928.5,3926.7,3.57610043]
[1733975885292,0.55,3928.3,3926.7,3.57610043]
[1733975885498,3.47233557,3928.2,3926.7,3.57610043]
[1733975885787,4.03006913,3928.2,3927.0,1.52787]
[1733975886002,4.03006913,3928.2,3926.7,5.10407043]
[1733975886160,8.12311557,3928.1,3926.7,3.57610043]
[1733975886356,8.12311557,3928.1,3926.4,1.52808]
[1733975886561,0.55,3927.9,3926.4,1.52808]
[1733975886869,0.55,3927.7,3926.4,1.52808]
[1733975887388,0.55,3927.5,3926.4,1.52808]
[1733975887613,3.47233557,3927.4,3926.5,1.52806]
[1733975887787,3.47233557,3927.4,3926.8,3.0]
[1733975888115,3.47233557,3927.4,3927.0,1.52786]
[1733975888317,3.47233557,3927.4,3927.2,1.52779]
[1733975888805,3.47233557,3927.9,3927.7,1.52759]
[1733975889505,3.47233557,3927.9,3927.3,3.0]
[1733975889706,3.47233557,3927.9,3927.6,1.52764]
[1733975889877,3.47233557,3927.9,3927.7,1.5276]
[1733975890097,0.75721356,3929.4,3927.8,4.52756]
[1733975890098,1.5842,3929.2,3927.8,4.52756]
[1733975890396,3.47233557,3928.9,3927.8,3.0]
[1733975890569,0.13012655,3930.0,3927.8,3.0]
[1733975890570,1.5842,3928.7,3927.8,3.0]
[1733975890762,1.5842,3928.7,3927.9,1.52751]
[1733975890999,2.08985356,3928.7,3927.9,1.52751]
[1733975891903,2.08985356,3928.7,3928.0,1.52748]
[1733975891904,1.5842,3928.7,3928.0,1.52748]
[1733975892427,3.47233557,3928.5,3926.8,3.57610043]
[1733975892569,0.55,3928.4,3927.5,1.52768]
[1733975892765,4.02233557,3928.4,3927.6,1.52764]
[1733975893124,3.47233557,3928.3,3927.7,1.5276]
[1733975893804,3.47233557,3928.3,3927.8,1.52755]
[1733975894013,3.47233557,3928.3,3927.3,5.10386043]
[1733975894014,3.47233557,3928.2,3928.1,1.52743]
[1733975895180,3.47233557,3928.2,3927.5,1.52766]
[1733975895409,3.47233557,3928.2,3927.4,3.0]
[1733975895769,3.47233557,3928.2,3927.7,1.52759]
[1733975896008,3.47233557,3928.2,3927.4,3.0]
[1733975896306,3.47233557,3928.1,3926.9,4.52791]
[1733975896464,0.34723356,3928.2,3926.7,1.52798]
[1733975896465,0.55,3927.9,3926.7,1.52798]
[1733975896880,0.55,3927.7,3926.8,1.52794]
[1733975897084,0.23604258,3927.6,3926.8,1.52794]
[1733975897318,0.92760908,3927.9,3926.5,1.52805]
[1733975897522,0.55,3927.7,3926.5,1.52805]
[1733975897672,0.23609125,3927.6,3926.8,1.52795]
[1733975898014,0.23608147,3927.5,3926.6,1.52803]
[1733975898191,0.55,3927.7,3926.6,1.52803]
[1733975898372,0.23602727,3927.6,3926.3,1.52813]
[1733975898566,0.23602727,3927.6,3926.6,1.52803]
[1733975898567,0.23602727,3927.5,3926.6,1.52803]
[1733975898764,3.47233557,3927.3,3926.6,1.52803]
[1733975898966,3.47233557,3927.3,3926.2,4.7753087]
[1733975899163,3.47233557,3927.3,3926.9,1.52791]
[1733975899404,3.47233557,3927.3,3926.7,3.0]
[1733975899405,3.47233557,3927.3,3926.7,4.52799]
[1733975899598,3.47233557,3927.3,3926.7,3.0]
[1733975899781,3.47233557,3927.3,3926.8,1.52795]
[1733975900280,0.55,3927.8,3926.5,1.52807]
[1733975900581,1.5842,3927.5,3926.5,1.52807]
[1733975900789,0.55,3927.6,3926.2,0.1646087]
[1733975900790,1.5842,3927.2,3926.2,0.1646087]
[1733975900995,1.5842,3926.9,3926.2,0.1646087]
[1733975901167,2.54667,3926.7,3926.2,0.1646087]
[1733975901370,0.71062499,3926.6,3926.2,0.1646087]
[1733975901607,4.08628623,3926.5,3926.2,0.1646087]
[1733975901793,4.74503727,3926.4,3926.2,0.1646087]
[1733975901992,0.61396727,3926.3,3926.2,0.1646087]
[1733975902203,0.61373578,3926.3,3926.2,0.1646087]
[1733975902411,0.86916251,3926.3,3926.2,0.1646087]
[1733975902671,0.23601392,3926.3,3926.2,0.1646087]
[1733975902866,1.5842,3926.4,3926.2,0.1646087]
[1733975903165,0.2358939,3926.3,3926.2,0.1646087]
[1733975903319,1.5842,3926.4,3926.2,0.1646087]
[1733975903824,1.5409,3927.0,3926.2,0.1646087]
[1733975904055,0.61328337,3926.9,3926.2,0.1646087]
[1733975904282,1.5409,3927.0,3926.5,1.52806]
[1733975904564,3.47233557,3926.9,3926.7,1.52799]
[1733975905065,3.47233557,3927.4,3926.4,1.52809]
[1733975905251,3.47233557,3927.4,3926.3,1.52815]
[1733975905449,3.47233557,3927.4,3926.2,3.1646087]
[1733975905759,3.47233557,3927.4,3926.5,3.0]
[1733975905943,3.47233557,3927.4,3926.4,1.52811]
[1733975906132,3.47233557,3927.4,3927.0,1.52786]
[1733975906347,3.47233557,3927.4,3926.7,1.52796]
[1733975906682,3.47233557,3927.4,3926.2,4.6927987]
[1733975906683,3.47233557,3927.4,3926.9,1.52789]
[1733975906868,5.01323557,3928.4,3926.6,5.18150043]
[1733975907049,5.01323557,3928.4,3927.7,1.52759]
[1733975907050,4.08579832,3928.3,3927.7,1.52759]
[1733975907258,4.08579832,3928.3,3927.2,1.52779]
[1733975907259,3.47233557,3928.3,3927.9,1.52751]
[1733975907782,1.5409,3928.4,3928.1,1.52743]
[1733975907988,1.5409,3928.8,3928.1,1.52741]
[1733975908271,0.23606311,3928.7,3928.0,3.0]
[1733975908475,1.5409,3928.8,3928.1,1.52745]
[1733975908678,0.23614693,3928.7,3928.0,3.0]
[1733975908988,3.47233557,3930.2,3929.3,1.52696]
[1733975909192,0.61383561,3930.1,3929.5,1.52689]
[1733975909355,0.23609062,3930.0,3929.5,1.52689]
[1733975909536,0.23609062,3929.9,3929.7,1.52682]
[1733975909739,1.5409,3930.3,3929.8,1.52678]
[1733975910078,1.5409,3930.3,3929.7,1.52682]
[1733975910467,3.47233557,3930.6,3929.5,3.0]
[1733975910672,0.236051,3930.5,3929.5,3.0]
[1733975910842,3.47233557,3930.6,3929.5,3.0]
[1733975911042,0.2360474,3930.5,3930.0,1.5267]
[1733975911346,3.47233557,3930.6,3929.4,1.52692]
[1733975911536,3.47233557,3930.6,3929.3,3.0]
[1733975911537,3.47233557,3930.6,3929.5,0.02544406]
[1733975911785,2.54438,3930.3,3928.8,1.52716]
[1733975912087,1.5409,3930.4,3928.9,1.52713]
[1733975912088,4.08623388,3930.2,3928.9,1.52713]
[1733975912258,4.08623388,3930.2,3928.7,3.0]
[1733975912259,0.61389831,3930.1,3928.7,3.0]
[1733975912462,0.23610277,3930.0,3928.7,3.0]
[1733975912665,3.47233557,3930.2,3928.8,1.52718]
[1733975912994,3.47233557,3930.2,3928.9,1.52714]
[1733975913143,3.47233557,3930.2,3929.0,3.0]
[1733975913342,3.47233557,3930.2,3929.3,1.52698]
[1733975913644,3.47233557,3930.2,3928.9,1.52714]
[1733975913859,3.47233557,3930.2,3929.4,1.52694]
[1733975914055,3.47233557,3930.2,3929.5,1.52689]
[1733975914653,3.47233557,3930.2,3928.7,3.0]
[1733975914903,3.47233557,3930.2,3928.8,1.52718]
[1733975915064,2.5438,3931.2,3928.1,1.65580146]
[1733975915065,1.5409,3930.0,3928.1,0.12835146]
[1733975915272,0.52494383,3929.9,3928.1,0.12835146]
[1733975915600,0.23614785,3929.8,3928.5,1.52728]
[1733975915764,0.23614785,3929.7,3928.5,1.52728]
[1733975915963,0.23614785,3929.6,3928.6,1.52723]
[1733975916178,0.52494383,3929.9,3928.6,1.52723]
[1733975916398,1.04442606,3929.8,3928.8,1.52717]
[1733975916698,0.80827394,3929.8,3928.3,3.0]
[1733975916880,0.80827394,3929.8,3928.1,3.12835146]
[1733975917192,0.80827394,3929.8,3928.8,1.52716]
[1733975917700,0.80827394,3929.8,3929.0,1.52709]
[1733975918061,3.47233557,3929.7,3929.0,1.52709]
[1733975918261,3.47233557,3929.7,3928.7,4.52721]
[1733975919075,1.5409,3929.1,3927.4,3.91879176]
[1733975919286,0.50132356,3929.0,3927.4,3.91879176]
[1733975920074,0.50132356,3929.0,3927.5,3.0]
[1733975920288,0.50132356,3929.0,3927.5,1.6054]
[1733975920497,1.5409,3929.1,3928.0,3.91879176]
[1733975921176,1.5409,3929.1,3927.5,1.6054]
[1733975921383,1.5409,3929.1,3927.8,1.52755]
[1733975922461,1.5409,3929.1,3927.5,4.6054]
[1733975922685,1.5409,3929.1,3928.1,1.52742]
[1733975922981,5.01323557,3929.1,3928.3,1.52735]
[1733975923277,5.01323557,3929.1,3928.7,1.52719]
[1733975923474,5.01017306,3929.1,3928.7,1.52719]
[1733975924180,5.01017306,3929.1,3928.4,1.52732]
[1733975924376,5.01017306,3929.1,3928.1,3.152742]
[1733975924583,5.01017306,3929.1,3928.5,1.52729]
[1733975925186,3.47233557,3929.1,3928.5,4.6054]
[1733975925479,6.01686557,3930.0,3928.5,1.52727]
[1733975925699,2.5446,3929.9,3928.5,1.52727]
[1733975925873,0.55,3929.8,3928.2,1.5274]
[1733975926071,0.40223356,3929.7,3928.1,3.0]
[1733975926384,2.54487,3929.5,3928.1,4.52744]
[1733975926604,1.5409,3929.4,3928.1,4.52744]
[1733975927522,1.5409,3929.4,3928.2,1.5274]
[1733975927711,1.5409,3929.4,3928.4,1.52733]
[1733975927879,1.5409,3929.4,3928.1,4.52743]
[1733975928283,1.5409,3929.4,3928.2,1.5274]
[1733975929031,3.47233557,3929.3,3928.3,1.52737]
[1733975929454,3.47233557,3929.1,3928.6,1.52725]
[1733975929736,1.5409,3929.4,3928.1,4.05595961]
[1733975929897,1.5409,3929.4,3928.3,3.0]
[1733975930097,1.5409,3929.4,3929.2,1.52702]
[1733975931127,1.5409,3929.4,3928.6,5.58317961]
[1733975931128,5.01323557,3930.1,3928.6,8.44601176]
[1733975931299,5.01323557,3930.1,3929.3,1.52696]
[1733975931917,5.01323557,3930.1,3929.0,1.52707]
[1733975932438,5.01323557,3930.1,3928.7,3.0]
[1733975932631,5.01323557,3930.1,3929.0,1.52707]
[1733975933316,5.01323557,3930.1,3929.2,1.527]
[1733975933832,5.01323557,3930.1,3929.3,1.52696]
[1733975934190,5.01323557,3930.1,3929.0,3.0]
[1733975934390,5.01323557,3930.1,3929.4,1.52693]
[1733975934631,3.47233557,3930.0,3929.4,1.52693]
[1733975934841,1.5409,3930.1,3929.6,3.57734479]
[1733975935130,3.47233557,3930.0,3928.6,1.05595961]
[1733975935334,2.16848849,3929.9,3928.8,3.57734479]
[1733975935504,0.23715493,3929.8,3928.8,3.57734479]
[1733975935833,0.23715493,3929.7,3928.8,3.57734479]
[1733975936032,1.93133356,3929.9,3928.8,3.57734479]
[1733975936233,0.23736675,3929.8,3928.8,5.10451479]
[1733975936538,0.80147034,3929.7,3928.9,3.0]
[1733975936708,1.5841,3929.9,3928.9,3.0]
[1733975937037,2.54528,3928.9,3927.8,1.05595961]
[1733975937190,3.09491,3929.4,3927.7,5.10492479]
[1733975937191,3.47233557,3928.7,3927.7,5.10492479]
[1733975937798,3.47233557,3928.7,3927.7,3.57734479]
[1733975938033,3.47233557,3928.7,3927.8,1.52756]
[1733975938190,1.5841,3928.8,3928.2,3.57734479]
[1733975938394,3.47233557,3929.0,3928.3,3.0]
[1733975938593,1.5841,3929.6,3928.8,3.0]
[1733975938594,3.85235458,3929.5,3928.8,3.0]
[1733975938850,3.47233557,3929.5,3928.8,3.0]
[1733975939757,1.5841,3929.6,3928.8,3.0]
[1733975940092,1.5841,3929.6,3929.0,1.5271]
[1733975940352,3.47233557,3929.8,3929.0,4.52707]
[1733975940519,1.5841,3930.0,3929.7,3.57734479]
[1733975940719,0.37993716,3931.2,3929.8,3.0]
[1733975940720,1.5841,3930.5,3929.8,3.0]
[1733975941123,0.579365,3931.3,3930.3,3.0]
[1733975941124,3.47233557,3931.1,3930.3,3.0]
[1733975941320,3.47233557,3931.1,3930.8,4.5264]
[1733975941524,3.47233557,3931.8,3930.8,3.0]
[1733975941721,5.05643557,3932.0,3931.2,5.10358479]
[1733975942237,5.05643557,3932.0,3930.8,3.0]
[1733975942651,3.47233557,3931.2,3929.7,1.05595961]
[1733975942806,2.54265,3932.9,3929.4,3.57734479]
[1733975942807,3.47233557,3931.0,3929.4,3.57734479]
[1733975943011,1.5841,3930.9,3929.4,3.57734479]
[1733975943355,3.25,3932.0,3929.4,3.57734479]
[1733975943356,3.47233557,3930.2,3929.4,3.57734479]
[1733975943562,3.47233557,3930.2,3928.8,3.17437]
[1733975943563,3.47233557,3929.9,3928.8,3.57734479]
[1733975943878,2.54454,3930.0,3928.8,3.57734479]
[1733975943879,3.47233557,3929.7,3928.8,3.57734479]
[1733975944006,1.5841,3929.8,3928.2,3.57734479]
[1733975944007,3.47233557,3929.6,3928.2,3.57734479]
[1733975944354,3.47233557,3929.6,3928.4,1.52733]
[1733975944512,3.47233557,3929.6,3928.2,3.57734479]
[1733975944915,3.47233557,3929.6,3928.3,1.52736]
[1733975945214,3.47233557,3929.6,3928.3,4.52736]
[1733975945519,0.23766504,3929.5,3928.3,4.52736]
[1733975945849,0.23766504,3929.5,3928.3,3.0]
[1733975946045,3.47233557,3929.6,3928.3,3.0]
[1733975946046,6.01713557,3929.6,3928.3,3.0]
[1733975946553,3.47233557,3929.6,3928.8,3.0]
[1733975947055,1.5223,3929.0,3928.0,3.57734479]
[1733975947224,0.75396956,3928.9,3928.0,3.57734479]
[1733975947550,1.5223,3929.0,3928.0,3.57734479]
[1733975947910,3.47233557,3929.1,3928.6,1.52723]
[1733975948157,3.47233557,3929.1,3928.7,1.52719]
[1733975948448,1.5223,3930.0,3929.1,3.0]
[1733975948815,1.5223,3930.0,3929.2,0.86786388]
[1733975949214,1.5223,3930.0,3929.1,4.52704]
[1733975949561,0.23759115,3929.9,3928.7,1.58393942]
[1733975949713,2.54485,3929.6,3928.4,3.57734479]
[1733975950046,3.70995042,3929.5,3928.5,0.8687498]
[1733975950263,3.47233557,3929.5,3928.4,3.57734479]
[1733975950429,3.47233557,3929.5,3928.6,1.52724]
[1733975950616,3.47233557,3929.5,3928.7,2.17188057]
[1733975950813,3.47233557,3929.9,3928.7,5.17188057]
[1733975951014,0.12480423,3931.4,3928.4,5.10467479]
[1733975951015,3.47233557,3930.6,3929.5,3.0]
[1733975951246,1.75988844,3930.5,3929.5,3.0]
[1733975951472,1.5223,3930.5,3929.7,3.0]
[1733975951673,1.5223,3930.5,3929.8,0.86936074]
[1733975951877,1.5223,3930.5,3929.6,3.0]
[1733975952080,1.5223,3930.5,3929.7,0.86930769]
[1733975952239,1.5223,3930.5,3929.5,4.5269]
[1733975952455,1.5223,3930.5,3929.6,7.75613392]
[1733975952687,4.99463557,3930.5,3930.0,3.57734479]
[1733975952889,4.99463557,3930.5,3930.1,2.17332431]
[1733975953356,3.47233557,3930.4,3930.2,0.86977292]
[1733975953677,3.12618043,3932.0,3930.3,0.8696573]
[1733975953678,1.5018,3931.1,3930.3,0.8696573]
[1733975953844,1.5018,3931.1,3930.0,1.05595961]
[1733975953845,0.73483691,3931.0,3930.0,1.05595961]
[1733975954049,0.23743391,3930.9,3930.1,0.86970633]
[1733975954255,0.49741356,3931.0,3929.9,1.05595961]
[1733975954458,0.23735518,3930.9,3930.0,2.17431275]
[1733975954751,0.23735728,3930.8,3930.1,3.0]
[1733975954938,1.88156862,3931.1,3930.2,2.17416307]
[1733975954939,1.5018,3931.1,3930.2,2.17416307]
[1733975955138,1.5018,3931.1,3930.1,3.0]
[1733975955139,1.5018,3931.1,3930.3,6.23002482]
[1733975955386,1.5018,3931.1,3930.5,3.0]
[1733975955556,1.5018,3931.1,3930.6,0.86966879]
[1733975955894,1.5018,3931.1,3930.4,1.52655]
[1733975956192,1.5018,3931.1,3930.5,5.17328497]
[1733975956480,3.47233557,3931.2,3930.6,2.17328497]
[1733975956653,3.47233557,3931.4,3930.7,2.39573399]
[1733975956854,3.47233557,3931.4,3930.5,4.05595961]
[1733975956855,3.47233557,3931.4,3930.8,2.39570399]
[1733975957165,3.47233557,3931.4,3930.8,1.52639]
[1733975957366,3.47233557,3931.4,3930.9,0.86898795]
[1733975957558,3.47233557,3931.4,3931.0,1.52629]
[1733975957741,3.47233557,3931.4,3931.2,1.52624]
[1733975958285,1.5018,3932.0,3931.4,1.52615]
[1733975958597,1.5018,3932.4,3931.7,1.52605]
[1733975959143,3.47233557,3932.9,3932.1,1.52588]
[1733975959344,0.34723356,3932.8,3932.1,1.52588]
[1733975959776,0.34723356,3932.8,3931.6,3.0]
[1733975959980,1.5018,3932.7,3931.2,4.52623]
[1733975960183,4.04461,3932.7,3931.2,1.52623]
[1733975960570,4.04461,3932.7,3931.3,1.5262]
[1733975960571,0.55,3932.6,3931.3,1.5262]
[1733975960777,0.49418436,3932.5,3931.3,1.5262]
[1733975960952,0.49418436,3932.5,3931.1,3.0]
[1733975961153,0.49418436,3932.5,3931.4,1.52615]
[1733975961351,0.55,3932.6,3931.4,1.52615]
[1733975961872,1.5018,3932.7,3931.5,1.5261]
[1733975963266,1.5018,3932.7,3931.6,1.52607]
[1733975963477,3.47233557,3932.5,3931.8,1.526]
[1733975963850,3.47233557,3932.5,3931.9,1.52596]
[1733975964308,3.47233557,3932.5,3932.0,1.52591]
[1733975965094,3.47233557,3932.5,3931.6,3.0]
[1733975965402,1.5018,3932.7,3931.7,1.52605]
[1733975965599,1.5018,3932.7,3932.1,1.52586]
[1733975965810,1.5163,3933.6,3932.0,5.10326479]
[1733975966117,3.47233557,3933.5,3932.6,1.5257]
[1733975966608,1.5163,3933.6,3932.6,1.5257]
[1733975966609,1.5163,3933.6,3933.0,1.52554]
[1733975966766,4.98863557,3933.6,3933.0,1.52554]
[1733975967294,4.98863557,3933.6,3932.8,0.02542463]
[1733975967497,4.98863557,3933.6,3933.2,1.52546]
[1733975967914,4.98863557,3933.6,3932.9,1.52556]
[1733975968568,4.98863557,3933.6,3933.0,1.52554]
[1733975968784,4.98863557,3933.6,3932.7,3.08824]
[1733975969212,4.98863557,3933.6,3933.0,3.57734479]
[1733975969422,4.98863557,3933.6,3933.2,1.52546]
[1733975969423,3.47233557,3933.6,3933.2,1.52546]
[1733975969809,3.47233557,3933.6,3933.1,3.0]
[1733975970008,1.5163,3934.0,3933.4,1.52538]
[1733975970304,1.5163,3934.6,3933.8,1.52521]
[1733975970470,1.5163,3934.6,3933.6,3.0]
[1733975970471,1.66793,3934.6,3933.6,4.5253]
[1733975970667,1.5163,3934.6,3933.6,3.0]
[1733975970901,1.5163,3934.6,3933.7,1.52527]
[1733975971800,1.5163,3935.2,3934.0,3.57734479]
[1733975972016,1.5163,3936.6,3935.1,3.57734479]
[1733975972174,2.54039,3936.4,3934.7,3.0]
[1733975972380,3.47233557,3935.7,3934.7,3.0]
[1733975973011,6.01320557,3935.7,3934.7,3.0]
[1733975973213,6.01320557,3935.7,3934.2,4.52507]
[1733975973416,2.54098,3935.5,3934.2,3.0]
[1733975973713,1.5163,3935.4,3934.2,3.0]
[1733975974201,3.47233557,3935.3,3934.2,3.0]
[1733975974408,2.5412,3935.2,3934.2,3.0]
[1733975974604,3.47233557,3935.3,3934.2,3.0]
[1733975974828,3.47233557,3935.3,3934.4,1.52497]
[1733975975125,3.47233557,3935.3,3934.2,3.0]
[1733975975126,3.47233557,3935.3,3934.6,3.57734479]
[1733975975302,1.5163,3936.3,3934.7,4.5626]
[1733975975498,4.05678,3936.3,3934.7,4.5626]
[1733975975734,1.5163,3936.3,3934.7,4.5626]
[1733975975945,1.5163,3936.3,3935.2,3.0]
[1733975976229,1.5163,3936.3,3935.6,3.57734479]
[1733975976399,3.47233557,3936.5,3935.7,3.0]
[1733975976604,0.12534026,3937.9,3935.0,1.52476]
[1733975976605,3.47233557,3937.0,3936.2,3.0]
[1733975976804,1.5163,3938.2,3936.9,1.52402]
[1733975976996,6.16329557,3938.1,3936.8,3.0]
[1733975977339,2.53959,3937.7,3936.3,3.0]
[1733975977488,1.5163,3937.5,3936.3,3.0]
[1733975978104,2.53989,3937.2,3936.3,3.0]
[1733975978443,1.5163,3937.2,3935.8,3.0]
[1733975978738,3.47233557,3937.1,3936.0,1.5626]
[1733975978936,4.98863557,3938.0,3936.9,3.0]
[1733975979143,3.47233557,3938.4,3937.0,1.5626]
[1733975979289,0.75276256,3938.3,3937.0,1.5626]
[1733975979495,3.47233557,3938.4,3937.2,1.5239]
[1733975979690,3.47233557,3938.4,3937.1,3.0]
[1733975980185,3.47233557,3938.4,3937.4,3.0]
[1733975980435,1.5163,3938.5,3937.6,1.52376]
[1733975980713,3.47233557,3938.9,3937.9,3.0]
[1733975980913,3.47233557,3938.7,3937.9,3.0]
[1733975981123,1.5163,3939.0,3937.9,3.0]
[1733975981124,3.47233557,3938.9,3937.9,3.0]
[1733975981820,6.01113557,3938.9,3937.4,3.0]
[1733975982391,3.47233557,3938.9,3937.4,3.02539336]
[1733975982613,2.53885,3938.8,3937.4,3.0]
[1733975982793,2.53897,3938.7,3937.4,3.0]
[1733975982992,3.47233557,3938.9,3937.3,3.57734479]
[1733975982993,2.53916,3938.3,3937.3,3.57734479]
[1733975983233,3.47233557,3938.5,3936.8,5.13994479]
[1733975983532,1.5163,3937.8,3936.8,3.57734479]
[1733975983735,1.66793,3937.8,3936.8,3.57734479]
[1733975984235,1.66793,3937.8,3936.3,5.13994479]
[1733975984236,3.47233557,3937.4,3936.3,5.13994479]
[1733975984594,6.01209557,3937.4,3936.3,5.13994479]
[1733975984822,3.47233557,3937.2,3935.8,5.13994479]
[1733975985025,6.01269557,3936.5,3935.8,3.57734479]
[1733975985264,3.47233557,3936.5,3935.4,1.5626]
[1733975985497,3.47233557,3936.5,3935.3,3.57734479]
[1733975985498,2.54067,3936.0,3935.3,3.57734479]
[1733975985798,2.54067,3936.0,3934.4,1.52499]
[1733975985799,2.54082,3935.8,3934.8,3.57734479]
[1733975986846,3.47233557,3935.7,3934.8,3.57734479]
[1733975987139,3.47233557,3935.4,3934.5,1.5626]
[1733975987432,3.47233557,3935.4,3934.3,3.57734479]
[1733975987433,2.5411,3935.3,3934.3,3.57734479]
[1733975988153,2.5411,3935.3,3934.1,0.12944954]
[1733975988154,3.47233557,3935.1,3935.0,1.5626]
[1733975988290,3.47233557,3936.2,3935.3,1.52462]
[1733975988494,3.47233557,3936.2,3935.6,3.57734479]
[1733975989164,3.47233557,3936.1,3935.6,3.57734479]
[1733975989569,2.54074,3935.9,3934.6,3.57734479]
[1733975989871,3.47233557,3936.1,3934.7,3.0]
[1733975990174,3.47233557,3936.1,3935.6,3.57734479]
[1733975990326,3.47233557,3937.1,3935.8,1.52445]
[1733975990521,4.98863557,3937.0,3935.8,1.52445]
[1733975990721,4.98863557,3937.0,3935.7,3.0]
[1733975990960,4.98863557,3937.0,3935.3,3.0]
[1733975991267,2.54026,3936.7,3935.3,3.0]
[1733975991433,0.23453853,3936.6,3935.3,3.0]
[1733975991638,0.23453853,3936.5,3935.3,3.0]
[1733975991843,0.23453853,3936.4,3935.3,3.0]
[1733975992024,2.54029,3936.6,3935.3,3.0]
[1733975992223,2.54042,3936.4,3935.2,4.5626]
[1733975992429,2.54042,3936.4,3935.1,3.57734479]
[1733975992430,4.99883557,3936.2,3935.1,3.57734479]
[1733975992624,4.99883557,3936.2,3932.3,1.52581]
[1733975992625,2.54077,3935.9,3934.6,3.57734479]
[1733975992936,0.23481311,3935.8,3934.6,5.10226479]
[1733975993138,0.55,3936.1,3934.6,5.10226479]
[1733975993331,0.23480626,3936.0,3934.6,5.10226479]
[1733975993532,0.23480626,3935.9,3934.6,3.57734479]
[1733975993747,4.99883557,3936.2,3934.7,3.0]
[1733975993748,0.23480626,3935.8,3934.7,3.0]
[1733975993960,0.37602715,3936.1,3934.7,3.0]
[1733975994173,4.99883557,3936.2,3934.7,3.0]
[1733975994174,0.23501284,3936.0,3934.7,3.0]
[1733975994337,0.23501284,3935.9,3934.7,3.0]
[1733975994662,4.99883557,3936.2,3934.7,3.0]
[1733975994663,0.23521676,3935.8,3934.7,4.52486]
[1733975994865,0.23521676,3935.7,3934.7,4.52486]
[1733975995022,0.37636347,3936.0,3934.7,4.52486]
[1733975995220,4.99883557,3936.2,3935.2,3.0]
[1733975995446,0.61203596,3936.1,3935.2,3.0]
[1733975995755,2.54072,3935.9,3934.6,3.0]
[1733975995955,0.61206711,3935.8,3934.6,3.0]
[1733975996149,0.61206711,3935.7,3934.6,3.0]
[1733975996378,1.5265,3935.3,3934.4,1.603]
[1733975996588,1.5265,3935.3,3934.0,3.57734479]
[1733975996589,2.77657058,3935.2,3934.0,3.57734479]
[1733975996742,0.61243458,3935.1,3934.0,3.57734479]
[1733975996946,2.54118,3935.2,3934.0,3.57734479]
[1733975996947,0.61243458,3935.0,3934.0,3.57734479]
[1733975997187,3.47233557,3934.8,3934.0,3.57734479]
[1733975997401,3.47233557,3934.8,3933.0,0.14044293]
[1733975997402,1.5265,3934.5,3933.5,3.57734479]
[1733975997580,0.23539058,3934.4,3933.5,3.57734479]
[1733975997891,0.23572719,3934.3,3933.6,1.5253]
[1733975998045,1.5265,3934.5,3933.6,1.5253]
[1733975998246,0.23574516,3934.4,3933.6,1.5253]
[1733975998496,0.23574516,3934.3,3933.6,1.5253]
[1733975998790,1.5265,3934.5,3933.5,3.57734479]
[1733975998944,0.2358171,3934.4,3933.5,3.57734479]
[1733975999147,1.5265,3934.5,3933.6,4.52531]
[1733975999546,0.23580139,3934.4,3933.6,4.52531]
[1733975999746,0.23587868,3934.3,3933.6,4.52531]
[1733975999982,1.5265,3934.5,3933.6,4.52531]
[1733976000189,3.47233557,3934.3,3933.6,3.0]
[1733976000959,3.47233557,3934.3,3933.1,3.0]
[1733976001286,3.84982199,3934.2,3933.0,5.10287479]
[1733976001449,3.47233557,3934.1,3933.0,5.10287479]